Cogmind - Beta 15 @@@ ROGUE MODE // 2025.08.25 @ 17:56:15 Player: NQH Result: Destroyed by G-34 Mercenary with Small Laser Performance ------------- Evolutions (0) 0 Regions Visited (1) 200 Robots Destroyed (17) 85 Value Destroyed (173) 173 Prototype IDs (0) 0 Alien Tech Used (0) 0 Bonus (0) 0 TOTAL SCORE: 458 Bonus ------- None Cogmind --------- Core Integrity 0/250 Matter 280/300 Energy 100/100 System Corruption 0% Temperature Cool (6) Movement Core (700) Ox13 Location -10/Materials Parts ------- > --- POWER (1) -------- (None) > --- PROPULSION (2) --- (None) > --- UTILITY (2) ------ Large Storage Unit Large Storage Unit > --- WEAPON (2) ------- (None) > --- INVENTORY (15) --- Improved Terrain Scanner Improved Terrain Scanner Peak State ------------ > --- POWER ------------ Light Ion Engine > --- PROPULSION ------- (None) > --- UTILITY ---------- Improved Terrain Scanner Improved Terrain Scanner > --- WEAPON ----------- Medium Laser Small Laser > --- INVENTORY -------- (None) [Rating: 9] Favorites ----------- Power Light Ion Engine Engine Light Ion Engine Propulsion None Utility Improved Terrain Scanner Device Improved Terrain Scanner Storage Large Storage Unit Processor Terrain Scan Processor Weapon Small Laser Energy Gun Small Laser Build | -11 -10 ------- Run | Yrd Mat Slots Evolved . | . . Power . | . . Propulsion . | . . Utility . | . . Weapon . | . . Parts Attached 8 | 5 3 Power 1 | 1 . Engine 1 | 1 . Core . | . . Reactor . | . . Propulsion . | . . Treads . | . . Leg . | . . Wheel . | . . Hover . | . . Flight . | . . Utility 5 | 2 3 Device 2 | 2 . Storage 2 | . 2 Processor 1 | . 1 Hackware . | . . Protection . | . . Artifact . | . . Weapon 2 | 2 . Energy Gun 2 | 2 . Energy Cannon . | . . Ballistic Gun . | . . Ballistic Cannon . | . . Launcher . | . . Special Weapon . | . . Impact Weapon . | . . Slashing Weapon . | . . Piercing Weapon . | . . Special Melee Weapon . | . . Unidentified Prototypes . | . . Parts Lost 3 | . 3 Power 1 | . 1 Propulsion . | . . Utility . | . . Weapon 2 | . 2 Highest Loss Streak 1 | . 1 To Critical Strikes . | . . Average Backups . | . 1 Power . | . . Propulsion . | . . Utility . | . 1 Weapon . | . . Tool/Special . | . . Unused Backups 1 | . 1 Power . | . . Propulsion . | . . Utility 1 | . 1 Weapon . | . . Tool/Special . | . . Average Slot Usage (%) 48 | . 48 Engine 5 | . 5 Device 18 | . 18 Storage 1 | . 1 Processor 4 | . 4 Energy Gun 18 | . 18 Peak Build Rating 9 | 9 9 Average Rating 6 | 6 6 On Entrance 4 | . 9 Naked Turns 24 | . 24 Heaviest Build 40 | 8 40 Greatest Support 3 | 3 3 Greatest Overweight (x) 13 | 2 13 Average Overweight (x) 1 | 1 . Largest Inventory Capacity 15 | 5 15 Average Capacity 5 | 5 5 Most Carried 2 | 1 2 Average Carried . | . 1 Final Capacity 15 | 5 15 Final Carried 2 | 1 2 Class Distribution -------------------- 100% | Mutant Dominant Class ---------------- Mutant | -10/Materials Resources | -11 -10 ----------- Run | Yrd Mat Matter Collected 250 | 250 . Remotely . | . . Salvage Created 447 | 307 140 Parts 34 | 27 7 Haulers Intercepted . | . . Recyclers Shooed 2 | 1 1 Parts Field Recycled . | . . Retrieved Matter . | . . Parts Self-Destructed . | . . Prevented . | . . Kills | -11 -10 ------- Run | Yrd Mat Combat Hostiles Destroyed 3 | . 3 Guns 2 | . 2 Classes Destroyed 5 | 3 2 Worker 4 | 4 . Builder 1 | . 1 Tunneler 8 | 8 . Recycler 1 | 1 . Grunt 3 | . 3 Best Kill Streak 6 | 6 3 Combat Bots Only 2 | . 2 Max Kills in Single Turn 2 | 2 1 Gunslinging . | . . Exploded . | . . Melee . | . . Uniques/NPCs Destroyed . | . . Combat | -11 -10 -------- Run | Yrd Mat Hostile Shots Fired 53 | . 53 Missed 17 | . 17 Hits 36 | . 36 Projectile 36 | . 36 Critical Strikes 1 | . 1 Damage Taken 483 | . 483 Core 258 | . 258 Absorbed by Shields . | . . Core Remaining (%) 100 | 100 . Volleys Fired 46 | 26 20 Largest 2 | 2 2 Hottest 90 | 90 90 Shots Fired 85 | 52 33 Gun 85 | 52 33 Cannon . | . . Launcher . | . . Special . | . . Kinetic . | . . Thermal 85 | 52 33 Explosive . | . . Electromagnetic . | . . Robot Hit Streak 9 | 7 9 Robot Miss Streak 2 | 2 1 Penetration Max . | . . Secondary Targets . | . . Shots Hit Robots 60 | 32 28 Core Hits 22 | 14 8 Critical Kills . | . . Critical Parts Destroyed . | . . Critical Strikes 4 | 2 2 Burn 4 | 2 2 Melee Attacks . | . . Impact . | . . Slashing . | . . Piercing . | . . Sneak Attacks . | . . Combat Hostiles . | . . Follow-up Attacks . | . . Damage Inflicted 742 | 393 349 Guns 730 | 393 337 Cannons . | . . Explosions . | . . Melee . | . . Ramming 12 | . 12 Kinetic . | . . Thermal 730 | 393 337 Explosive . | . . Electromagnetic . | . . Impact . | . . Slashing . | . . Piercing . | . . Highest Corruption . | . . Average Corruption . | . . Corruption Purged . | . . Corruption Blocked . | . . Overload Shots . | . . Overflow Damage . | . . Projectiles . | . . Explosions . | . . Melee . | . . Knockbacks . | . . Impact . | . . Kinetic . | . . Secondary . | . . Self-Inflicted Damage 6 | . 6 Shots . | . . Rammed 4 | . 4 Targets Rammed 4 | . 4 Kicked . | . . Crushed . | . . Highest Temperature 248 | 210 248 Average Temperature 92 | 92 92 Received Heat Transfer 291 | . 291 Siege Activations . | . . Martial Activations . | . . Shielding Activations . | . . Robots Disrupted . | . . Combat Hostiles . | . . Robots Corrupted . | . . Combat Hostiles . | . . Parts Fried . | . . Impact Corruptions . | . . Robots Melted 1 | . 1 Combat Hostiles 1 | . 1 Parts Melted 4 | 4 . Heat Transferred 2219 | 1214 1005 Parts Sabotaged . | . . Parts Stolen . | . . Parts Stripped . | . . Power Chain Reactions . | . . Alert | -11 -10 ------- Run | Yrd Mat Maximum Alert Level . | . . Low Security (%) 100 | 100 100 Level 1 . | . . Level 2 . | . . Level 3 . | . . Level 4 . | . . Level 5 . | . . High Security . | . . Max Security . | . . Peak Influence 35 | 10 35 Initial . | . . Average 2 | 1 8 Influence Increases 145 | 65 80 Destroy 0b10 Robot/C 60 | . 60 Destroy 0b10 Robot/NC 70 | 65 5 Lose Combat Pursuer 15 | . 15 Influence Decreases 140 | 65 75 Time Decay 110 | 65 45 Lost Part 30 | . 30 Squads Dispatched 1 | . 1 Investigation . | . . Extermination . | . . Reinforcement 1 | . 1 Assault . | . . Garrison . | . . Intercept . | . . Searches Triggered . | . . Construction Impeded . | . . Haulers Reinforced . | . . Active Scanning Responses . | . . Cargo Convoy Interrupts . | . . Stealth | -11 -10 --------- Run | Yrd Mat Distress Signals 1 | . 1 Communications Jammed . | . . Distress Signals . | . . Times Spotted 6 | . 6 Peak Tracking Total 3 | . 3 Tactical Retreats 1 | . 1 Traps | -11 -10 ------- Run | Yrd Mat Traps Triggered . | . . Indirectly . | . . Trap Hack Attempts . | . . Triggered . | . . Disarmed . | . . Reprogrammed . | . . Reused . | . . Traps Extracted . | . . Installed . | . . Triggered . | . . Machines | -11 -10 ---------- Run | Yrd Mat Machines Disabled . | . . Max in Single Turn . | . . Machines Repaired . | . . Machines Dismantled . | . . Machines Sabotaged . | . . Overloaded Fab Kills . | . . Hacking | -11 -10 --------- Run | Yrd Mat Machines Accessed . | . . Terminals . | . . Fabricators . | . . Repair Stations . | . . Recycling Units . | . . Scanalyzers . | . . Garrison Access . | . . Total Hacks . | . . Successful . | . . Failed . | . . Catastrophic . | . . Database Lockouts . | . . Manual . | . . Terminals . | . . Fabricators . | . . Repair Stations . | . . Recycling Units . | . . Scanalyzers . | . . Garrison Access . | . . Terminal Hacks . | . . Fabricator Hacks . | . . Repair Station Hacks . | . . Recycling Unit Hacks . | . . Scanalyzer . | . . Garrison Access Hacks . | . . Unauthorized Hacks . | . . Terminals . | . . Fabricators . | . . Repair Stations . | . . Recycling Units . | . . Scanalyzers . | . . Garrison Access . | . . Data Cores Recovered . | . . Used . | . . Hacking Detections . | . . Full Trace Events . | . . Feedback Events . | . . Feedback Blocked . | . . Robot Schematics Acquired . | . . Robots Built . | . . Authchips . | . . Time . | . . Total Robot Build Rating . | . . Part Schematics Acquired . | . . Parts Built . | . . Authchips . | . . Time . | . . Total Part Build Rating . | . . Parts Repaired . | . . Time . | . . Parts Recycled . | . . Recycled Matter . | . . Retrieved Matter . | . . Retrieved Components . | . . Parts Scanalyzed . | . . Part Schematics Acquired . | . . Parts Damaged . | . . Bothacking | -11 -10 ------------ Run | Yrd Mat Used RIF Installer . | . . Robots Hacked . | . . Non-combat . | . . Combat . | . . Robot Hacks Applied . | . . Relay Couplers Released . | . . Fabnet Peak Effective % . | . . Robots Rewired . | . . Allies Hacked . | . . Hacks Repelled . | . . Allies | -11 -10 -------- Run | Yrd Mat Total Allies . | . . Largest Group . | . . Highest-Rated Group . | . . Highest-Rated Ally . | . . Total Orders . | . . Ally Attacks . | . . Total Damage . | . . Kills . | . . Allies Corrupted . | . . Allies Melted . | . . Intel | -11 -10 ------- Run | Yrd Mat Active Infowar (turns) 541 | 397 144 Terrain 541 | 397 144 Robot Analysis Total . | . . Derelict Logs Recovered . | . . Drone Launches . | . . Drone Recoveries . | . . Exploration | -11 -10 ------------- Run | Yrd Mat Turns Passed 699 | 515 184 Spaces Moved 245 | 134 111 Core 245 | 134 111 Treads . | . . Legs . | . . Wheels . | . . Hover . | . . Flight . | . . Fastest Speed 50 | 50 50 Average Speed 117 | 135 97 Slowest Speed 700 | 150 700 Overloaded Moves . | . . Propulsion Burnouts . | . . Robots Hopped . | . . Potential Cave-ins . | . . Cave-ins Triggered . | . . Exploration Rate (%) 11 | 3 20 Regions Visited 1 Branch Regions . Pre-discovered Areas . | . . Known Exits Taken . | . . Unknown Exits Taken 1 | 1 . Scrap Searched . | . . Spaces Dug . | . . Terrain Destroyed . | . . Melee . | . . Projectile . | . . AOE . | . . Terrain Rammed . | . . Walls Destroyed . | . . Machines Disabled . | . . Actions | -11 -10 --------- Run | Yrd Mat Total 569 | 413 156 Wait 265 | 248 17 Move 244 | 133 111 Hop . | . . Pick Up 1 | 1 . Fast Attach 8 | 5 3 Attach . | . . Detach 1 | . 1 Swap . | . . Drop . | . . Fire 46 | 26 20 Melee . | . . Ram 4 | . 4 Kick . | . . Crush . | . . Escape Stasis . | . . Rewire . | . . Trap . | . . Miscellaneous . | . . Route ------- -11/Scrapyard -10/Materials History --------- Turn | Location | Event 4 | -11/Scrapyard | Discovered new exit (range 16) 516 | -11/Scrapyard | Entered Materials 517 | -10/Materials | Build established: Mutant 649 | -10/Materials | Core integrity fell below 50% 661 | -10/Materials | Core integrity fell below 20% 666 | -10/Materials | Released all parts (2) 700 | -10/Materials | Destroyed by G-34 Mercenary with Small Laser Last Messages --------------- Engine. 00637_ G-34 Mercenary overheating. 00637_ G-34 Mercenary critical meltdown. 00655_ R-06 Scavenger collects Sml. Laser. 00658_ Sml. Laser destroyed. 00659_ R-06 Scavenger collects Heat Sink. 00660_ Slammed into G-47 Trooper. 00660_ Destabilizing: System interference. 00660_ Imp. Terrain Scanner temporarily disabled. 00661_ Slammed into G-47 Trooper. 00663_ Imp. Terrain Scanner broken. 00663_ Destabilizing: Short circuit. 00663_ R-06 Scavenger collects Aluminum Leg. 00665_ K-01 Serf collects debris. 00666_ Released Broken Imp. Terrain Scanner. 00666_ Released Terrain Scan Processor. 00667_ K-01 Serf collects debris. 00667_ R-06 Scavenger collects Wheel. 00668_ K-01 Serf collects debris. 00690_ Acquired Lrg. Storage Unit. Map ----- +----------------------------------------------------+ | | | | | | | | | | | | | | | | | | | | | | | | | | | | | | | | | | | | | | | | | | | | | | | ????????????????????????????????????????????????? | | ?#????????????????????######????????????????????? | | ????#?#??????????????##! @!##???????????????????? | | ????#????????????????#! !#???????????????????? | | ?? ???? ??##########?# #???????????????????? | | ????? ? ??+ ### ###???????????????????? | | ??????????# ## #?????????????????????? | | ?# ??????# ##g ####??????????????????? | | ??? ?? ???+ " !?????????????? | | ??? ? ?? ?##### ##### ### !!#???????????? | | ??? ? ?????#??# #???# #???? [[????????????? | | ?# ? ??? #???# #???###+###???????[[????????????? | | ##? ?? ??#???# #???????????????????????????????? | | ######+######## ##??????????????????????????????? | | #??????????????????????????????? | | +??????????????????????????????? | | #??????????????????????????????? | | ############ #??????????????????????????????? | | %#???#??#?#?# #??????????????????????????????? | | ####????#?## #??????????????????????????????? | | ###"??##?#?# #??????????????????????????????? | | ###"Y????### #??????????????????????????????? | | #??? ? ???# #??????????????????????????????? | | # ?? ??+ ? #??????????????????????????????? | | !#? ? #??##+##??????????????????????????????? | | %%#????? ?? ???????????????????????????????????? | | %%# ?""?? # ???????????????????????????????????? | +----------------------------------------------------+ Best States ------------- Heat Dissipation 25 Energy Generation 10 Energy Capacity 125 Matter Stores 300 Matter Capacity 300 Sight Range 16 Terrain Scan Range 16 Terrain Scan Density 85 Evasion (%) 50 Item Schematics ----------------- None Robot Schematics ------------------ None Fabricated ------------ Nothing Repaired ---------- Nothing Alien Tech Used ----------------- None Achievements -------------- None Challenges ------------ None Game ------ Seed MasterBiocellInjector Manual? 0 Play Time 00:02:59 Cumulative 19.9 hours Start 2025.08.25 @ 17:54:18 End 2025.08.25 @ 17:56:15 Sessions 1 Manual Loads 0 Difficulty Rogue Special Mode None Game No. 66 Rogue 66 Adventurer 0 Explorer 0 Win Type - Total 0 Types 0/0/0/0/0/0/0/0/0/0 Lore% 10 Gallery% 24 Achievement% 23 Wizard Run 0 Options --------- Layout 1 ASCII 0 Keyboard 1 Movement Vi Keybinds 0 Fullscreen 1 Font 16/SmallcapsGlow Map View 55x38 Zoom Use 0% Tactical HUD 1 Map Filters NONE Filters NONE Steam 1 RUN: 23c20eb8-d6bf-4c82-ac11-1478396c696a